fUST/lending_fUST_20240611
["ID","MTS","AMOUNT","RATE_DAILY","PERIOD"]
[329093654,1718101847789,-500.0,0.00021917,2]
[329093655,1718101847800,-500.0,0.00021917,2]
[329093656,1718101847811,-492.77975096,0.00021917,2]
[329093657,1718101847822,-500.0,0.00021917,2]
[329093658,1718101847833,-500.0,0.00021917,2]
[329093660,1718101847844,-505.29367401,0.00021917,2]
[329093661,1718101847855,-500.93578537,0.00021917,2]
[329093662,1718101847865,-500.0,0.00021917,2]
[329093663,1718101847877,-505.06638756,0.00021917,2]
[329093664,1718101847888,-501.08768205,0.00021917,2]
[329093665,1718101847899,-500.0,0.00021917,2]
[329093666,1718101847909,-500.0,0.00021917,2]
[329093667,1718101847921,-183.12086041,0.00021917,2]
[329093668,1718101847931,-500.0,0.00021917,2]
[329093669,1718101847942,-500.0,0.00021917,2]
[329093670,1718101847953,-500.0,0.00021917,2]
[329093671,1718101847965,-500.0,0.00021917,2]
[329093672,1718101847976,-500.0,0.00021917,2]
[329093673,1718101847986,-505.26650834,0.00021917,2]
[329093674,1718101847998,-500.0,0.00021917,2]
[329093675,1718101848009,-500.0,0.00021917,2]
[329093676,1718101848020,-500.0,0.00021917,2]
[329093677,1718101848032,-151.0,0.00021917,2]
[329093678,1718101848043,-500.0,0.00021917,2]
[329093679,1718101848054,-500.0,0.00021917,2]
[329093680,1718101848064,-500.0,0.00021917,2]
[329093681,1718101848075,-500.0,0.00021917,2]
[329093682,1718101848085,-500.0,0.00021917,2]
[329093683,1718101848096,-500.0,0.00021917,2]
[329093684,1718101848108,-151.0,0.00021917,2]
[329093685,1718101848118,-500.0,0.00021917,2]
[329093686,1718101848130,-500.0,0.00021917,2]
[329093687,1718101848140,-504.33011526,0.00021917,2]
[329093688,1718101848151,-500.0,0.00021917,2]
[329093689,1718101848162,-500.0,0.00021917,2]
[329093690,1718101848172,-500.0,0.00021917,2]
[329093692,1718101848183,-500.0,0.00021917,2]
[329093694,1718101848194,-500.0,0.00021917,2]
[329093695,1718101848205,-262.5165486,0.00021917,2]
[329093696,1718101848216,-497.34216697,0.00021917,2]
[329093697,1718101848226,-500.0,0.00021917,2]
[329093698,1718101848238,-503.29381313,0.00021917,2]
[329093699,1718101848248,-618.77698139,0.00021917,2]
[329093701,1718101848258,-500.0,0.00021917,2]
[329093703,1718101848269,-500.0,0.00021917,2]
[329093705,1718101848281,-164.50644238,0.00021917,2]
[329093706,1718101848292,-263.27744964,0.00021917,2]
[329093708,1718101848303,-589.49,0.00021917,2]
[329093710,1718101848313,-502.71974628,0.00021917,2]
[329093711,1718101848324,-500.0,0.00021917,2]
[329093712,1718101848335,-500.0,0.00021917,2]
[329093713,1718101848346,-500.0,0.00021917,2]
[329093714,1718101848357,-500.0,0.00021917,2]
[329093715,1718101848368,-500.0,0.00021917,2]
[329093716,1718101848467,-503.93438398,0.00021917,2]
[329093718,1718101848477,-151.0,0.00021917,2]
[329093719,1718101848488,-151.0,0.00021917,2]
[329093720,1718101848499,-505.82639184,0.00021917,2]
[329093721,1718101848510,-500.0,0.00021917,2]
[329093722,1718101848521,-312.69598048,0.00021917,2]
[329093723,1718101848532,-502.98750538,0.00021917,2]
[329093724,1718101848544,-500.0,0.00021917,2]
[329093725,1718101848557,-501.11646839,0.00021917,2]
[329093726,1718101848569,-536.1980825,0.00021917,2]
[329093727,1718101848580,-500.0,0.00021917,2]
[329093728,1718101848591,-534.70225318,0.00021917,2]
[329093729,1718101848602,-536.77771604,0.00021917,2]
[329093730,1718101848613,-500.0,0.00021917,2]
[329093731,1718101848626,-500.0,0.00021917,2]
[329093732,1718101848637,-504.23118899,0.00021917,2]
[329093733,1718101848647,-246.896942,0.00021917,2]
[329093734,1718101848659,-246.896942,0.00021917,2]
[329093735,1718101848669,-151.0,0.00021917,2]
[329093736,1718101848679,-151.0,0.00021917,2]
[329093737,1718101848690,-500.0,0.00021917,2]
[329093738,1718101848700,-495.15691351,0.00021917,2]
[329093739,1718101848718,-500.0,0.00021917,2]
[329093740,1718101848729,-500.0,0.00021917,2]
[329093741,1718101848740,-500.0,0.00021917,2]
[329093742,1718101848750,-500.0,0.00021917,2]
[329093743,1718101848760,-1115.76,0.00021917,2]
[329093744,1718101848771,-500.0,0.00021917,2]
[329093745,1718101848782,-500.0,0.00021917,2]
[329093746,1718101848792,-500.0,0.00021917,2]
[329093747,1718101848803,-500.0,0.00021917,2]
[329093748,1718101848813,-151.0,0.00021917,2]
[329093749,1718101848824,-500.0,0.00021917,2]
[329093750,1718101848834,-500.0,0.00021917,2]
[329093751,1718101848845,-151.0,0.00021917,2]
[329093752,1718101848855,-500.0,0.00021917,2]
[329093753,1718101848865,-500.0,0.00021917,2]
[329093754,1718101848878,-500.0,0.00021917,2]
[329093755,1718101848891,-500.0,0.00021917,2]
[329093756,1718101848903,-382.74222411,0.00021917,2]
[329093757,1718101848914,-500.0,0.00021917,2]
[329093758,1718101848925,-151.0,0.00021917,2]
[329093759,1718101848936,-151.0,0.00021917,2]
[329093760,1718101848947,-500.0,0.00021917,2]
[329093761,1718101848958,-500.0,0.00021917,2]
[329093762,1718101848969,-500.0,0.00021917,2]
[329093763,1718101848979,-502.13028345,0.00021917,2]
[329093764,1718101848989,-502.57518118,0.00021917,2]
[329093765,1718101849000,-500.0,0.00021917,2]
[329093766,1718101849010,-500.0,0.00021917,2]
[329093767,1718101849020,-300.29102287,0.00021917,2]
[329093768,1718101849032,-500.0,0.00021917,2]
[329093769,1718101849042,-1150.23,0.00021917,2]
[329093770,1718101849052,-500.0,0.00021917,2]
[329093771,1718101849062,-500.0,0.00021917,2]
[329093772,1718101849072,-510.13386643,0.00021917,2]
[329093773,1718101849083,-500.0,0.00021917,2]
[329093774,1718101849093,-500.0,0.00021917,2]
[329093775,1718101849103,-500.0,0.00021917,2]
[329093776,1718101849114,-151.0,0.00021917,2]
[329093777,1718101849125,-151.0,0.00021917,2]
[329093778,1718101849135,-500.0,0.00021917,2]
[329093779,1718101849146,-520.10187489,0.00021917,2]
[329093780,1718101849156,-543.65113368,0.00021917,2]
[329093781,1718101849166,-151.0,0.00021917,2]
[329093782,1718101849177,-151.0,0.00021917,2]
[329093783,1718101849187,-500.0,0.00021917,2]
[329093784,1718101849197,-509.72041586,0.00021917,2]
[329093785,1718101849209,-962.48,0.00021917,2]
[329093786,1718101849220,-500.0,0.00021917,2]
[329093787,1718101849230,-500.0,0.00021917,2]
[329093788,1718101849241,-500.0,0.00021917,2]
[329093789,1718101849251,-504.60574249,0.00021917,2]
[329093790,1718101849261,-151.0,0.00021917,2]
[329093791,1718101849273,-151.0,0.00021917,2]
[329093792,1718101849282,-151.0,0.00021917,2]
[329093793,1718101849292,-507.30766513,0.00021917,2]
[329093794,1718101849302,-385.65748618,0.00021917,2]
[329093795,1718101849312,-516.18877623,0.00021917,2]
[329093796,1718101849322,-500.0,0.00021917,2]
[329093797,1718101849332,-500.0,0.00021917,2]
[329093798,1718101849342,-814.63,0.00021917,2]
[329093799,1718101849353,-500.0,0.00021917,2]
[329093800,1718101849362,-500.0,0.00021917,2]
[329093801,1718101849371,-501.2120773,0.00021917,2]
[329093802,1718101849381,-500.0,0.00021917,2]
[329093803,1718101849392,-3163.84,0.00021917,2]
[329093804,1718101849402,-500.0,0.00021917,2]
[329093805,1718101849412,-500.0,0.00021917,2]
[329093806,1718101849422,-500.0,0.00021917,2]
[329093807,1718101849432,-500.0,0.00021917,2]
[329093808,1718101849441,-500.0,0.00021917,2]
[329093809,1718101849451,-500.0,0.00021917,2]
[329093810,1718101849462,-500.0,0.00021917,2]
[329093811,1718101849472,-500.0,0.00021917,2]
[329093812,1718101849483,-505.76753032,0.00021917,2]
[329093813,1718101849492,-506.04564106,0.00021917,2]
[329093814,1718101849502,-500.0,0.00021917,2]
[329093815,1718101849512,-276.619572,0.00021917,2]
[329093816,1718101849523,-276.619572,0.00021917,2]
[329093817,1718101849534,-276.619572,0.00021917,2]
[329093818,1718101849549,-276.619572,0.00021917,2]
[329093819,1718101849560,-3058.65,0.00021917,2]
[329093820,1718101849570,-500.0,0.00021917,2]
[329093821,1718101849582,-500.0,0.00021917,2]
[329093822,1718101849594,-500.0,0.00021917,2]
[329093823,1718101849604,-500.0,0.00021917,2]
[329093824,1718101849615,-500.0,0.00021917,2]
[329093825,1718101849628,-503.47289318,0.00021917,2]
[329093826,1718101849639,-500.0,0.00021917,2]
[329093827,1718101849650,-500.0,0.00021917,2]
[329093828,1718101849660,-394.45123888,0.00021917,2]
[329093829,1718101849670,-500.0,0.00021917,2]
[329093830,1718101849681,-500.0,0.00021917,2]
[329093831,1718101849692,-500.0,0.00021917,2]
[329093832,1718101849703,-500.0,0.00021917,2]
[329093833,1718101849720,-500.0,0.00021917,2]
[329093834,1718101849731,-500.0,0.00021917,2]
[329093835,1718101849742,-500.0,0.00021917,2]
[329093836,1718101849752,-2217.53,0.00021917,2]
[329093837,1718101849763,-500.0,0.00021917,2]
[329093838,1718101849776,-500.0,0.00021917,2]
[329093839,1718101849785,-500.0,0.00021917,2]
[329093840,1718101849796,-635.96017953,0.00021917,2]
[329093841,1718101849806,-502.03797108,0.00021917,2]
[329093842,1718101849816,-500.0,0.00021917,2]
[329093843,1718101849827,-500.0,0.00021917,2]
[329093844,1718101849837,-555.58793569,0.00021917,2]
[329093845,1718101849848,-500.0,0.00021917,2]
[329093846,1718101849860,-15514.61,0.00021917,2]
[329093847,1718101849871,-500.0,0.00021917,2]
[329093848,1718101849882,-503.83899908,0.00021917,2]
[329093849,1718101849892,-283.10370163,0.00021917,2]
[329093850,1718101849903,-500.0,0.00021917,2]
[329093851,1718101849914,-500.0,0.00021917,2]
[329093852,1718101849924,-500.0,0.00021917,2]
[329093853,1718101849935,-500.0,0.00021917,2]
[329093854,1718101849945,-500.0,0.00021917,2]
[329093855,1718101849956,-500.0,0.00021917,2]
[329093856,1718101849966,-500.0,0.00021917,2]
[329093857,1718101849977,-500.0,0.00021917,2]
[329093858,1718101849987,-500.0,0.00021917,2]
[329093859,1718101849998,-2020.41,0.00021917,2]
[329093860,1718101850008,-500.0,0.00021917,2]
[329093861,1718101850019,-151.0,0.00021917,2]
[329093862,1718101850032,-500.0,0.00021917,2]
[329093863,1718101850042,-1603.17,0.00021917,2]
[329093864,1718101850052,-500.0,0.00021917,2]
[329093865,1718101850062,-500.0,0.00021917,2]
[329093866,1718101850073,-500.0,0.00021917,2]
[329093867,1718101850084,-500.0,0.00021917,2]
[329093868,1718101850095,-268.2256861,0.00021917,2]
[329093869,1718101850106,-554.94673723,0.00021917,2]
[329093870,1718101850116,-151.0,0.00021917,2]
[329093871,1718101850126,-151.0,0.00021917,2]
[329093872,1718101850137,-500.0,0.00021917,2]
[329093873,1718101850146,-500.0,0.00021917,2]
[329093874,1718101850157,-501.71349734,0.00021917,2]
[329093875,1718101850167,-500.0,0.00021917,2]
[329093876,1718101850177,-380.38785,0.00021917,2]
[329093877,1718101850187,-380.38785,0.00021917,2]
[329093878,1718101850197,-500.0,0.00021917,2]
[329093879,1718101850207,-500.0,0.00021917,2]
[329093880,1718101850216,-1000.0,0.00021917,2]
[329093881,1718101850226,-380.38785,0.00021917,2]
[329093882,1718101850236,-518.98291501,0.00021917,2]
[329093883,1718101850245,-245.176606,0.00021917,2]
[329093884,1718101850255,-380.38785,0.00021917,2]
[329093885,1718101850265,-151.0,0.00021917,2]
[329093886,1718101850276,-151.0,0.00021917,2]
[329093887,1718101850286,-151.0,0.00021917,2]
[329093888,1718101850296,-500.0,0.00021917,2]
[329093889,1718101850311,-2817.88,0.00021917,2]
[329093890,1718101850322,-500.0,0.00021917,2]
[329093891,1718101850332,-500.0,0.00021917,2]
[329093892,1718101850343,-572.38,0.00021917,2]
[329093893,1718101850353,-500.0,0.00021917,2]
[329093894,1718101850365,-500.0,0.00021917,2]
[329093895,1718101850376,-500.0,0.00021917,2]
[329093896,1718101850386,-1933.91,0.00021917,2]
[329093897,1718101850397,-500.0,0.00021917,2]
[329093898,1718101850407,-501.34817219,0.00021917,2]
[329093899,1718101850418,-500.0,0.00021917,2]
[329093900,1718101850430,-500.0,0.00021917,2]
[329093901,1718101850442,-500.0,0.00021917,2]
[329093902,1718101850453,-500.0,0.00021917,2]
[329093903,1718101850464,-500.0,0.00021917,2]
[329093904,1718101850474,-28.60149832,0.00021917,2]
[329093905,1718101850529,-471.39850168,0.00021917,2]
[329093906,1718101850541,-500.0,0.00021917,2]
[329093907,1718101850555,-500.0,0.00021917,2]
[329093908,1718101850566,-500.0,0.00021917,2]
[329093909,1718101850576,-500.0,0.00021917,2]
[329093910,1718101850588,-500.0,0.00021917,2]
[329093911,1718101850600,-500.0,0.00021917,2]
[329093912,1718101850612,-500.0,0.00021917,2]
[329093913,1718101850625,-500.0,0.00021917,2]
[329093914,1718101850635,-501.12855007,0.00021917,2]
[329093915,1718101850648,-500.0,0.00021917,2]
[329093916,1718101850658,-500.0,0.00021917,2]
[329093917,1718101850671,-500.0,0.00021917,2]
[329093918,1718101850681,-500.0,0.00021917,2]
[329093919,1718101850692,-500.0,0.00021917,2]
[329093920,1718101850704,-502.04414044,0.00021917,2]
[329093921,1718101850717,-575.43982784,0.00021917,2]
[329093922,1718101850732,-507.08114311,0.00021917,2]
[329093923,1718101850830,-500.0,0.00021917,2]
[329093924,1718101850842,-492.65123151,0.00021917,2]
[329093925,1718101850856,-10.15313675,0.00021917,2]
[329093926,1718101850867,-500.0,0.00021917,2]
[329093927,1718101850877,-490.29340431,0.00021917,2]
[329093928,1718101851072,-317.18350335,0.0001836,2]
[329093929,1718101851132,-9.70659569,0.00021917,2]
[329093930,1718101851143,-500.0,0.00021917,2]
[329093931,1718101851154,-500.0,0.00021917,2]
[329093932,1718101851165,-500.0,0.00021917,2]
[329093933,1718101851175,-500.0,0.00021917,2]
[329093934,1718101851187,-500.0,0.00021917,2]
[329093935,1718101851198,-500.0,0.00021917,2]
[329093936,1718101851210,-500.0,0.00021917,2]
[329093937,1718101851221,-500.0,0.00021917,2]
[329093938,1718101851232,-500.0,0.00021917,2]
[329093939,1718101851243,-498.79047333,0.00021917,2]
[329093940,1718101851255,-500.0,0.00021917,2]
[329093941,1718101851266,-151.0,0.00021917,2]
[329093942,1718101851277,-151.0,0.00021917,2]
[329093943,1718101851287,-151.0,0.00021917,2]
[329093944,1718101851297,-534.34960106,0.00021917,2]
[329093945,1718101851310,-500.0,0.00021917,2]
[329093946,1718101851321,-500.0,0.00021917,2]
[329093947,1718101851332,-500.0,0.00021917,2]
[329093948,1718101851344,-501.56641669,0.00021917,2]
[329093949,1718101851355,-500.0,0.00021917,2]
[329093950,1718101851366,-569.52,0.00021917,2]
[329093951,1718101851377,-500.0,0.00021917,2]
[329093952,1718101851387,-733.63,0.00021917,2]
[329093953,1718101851398,-500.0,0.00021917,2]
[329093954,1718101851409,-194.91974482,0.00021917,2]
[329093955,1718101851426,-305.08025518,0.00021917,2]
[329093956,1718101851437,-505.86706537,0.00021917,2]
[329093957,1718101851449,-510.55809996,0.00021917,2]
[329093958,1718101851459,-261.16897435,0.00021917,2]
[329093959,1718101851470,-500.0,0.00021917,2]
[329093960,1718101851481,-506.21401444,0.00021917,2]
[329093961,1718101851491,-262.099115,0.00021917,2]
[329093962,1718101851503,-500.0,0.00021917,2]
[329093963,1718101851514,-240.47598047,0.00021917,2]
[329093964,1718101851526,-500.0,0.00021917,2]
[329093965,1718101851537,-500.0,0.00021917,2]
[329093966,1718101851551,-500.0,0.00021917,2]
[329093967,1718101851561,-501.39989157,0.00021917,2]
[329093968,1718101851572,-500.0,0.00021917,2]
[329093969,1718101851583,-518.55413613,0.00021917,2]
[329093970,1718101851594,-500.0,0.00021917,2]
[329093971,1718101851605,-500.0,0.00021917,2]
[329093972,1718101851616,-500.0,0.00021917,2]
[329093973,1718101851629,-500.0,0.00021917,2]
[329093974,1718101851640,-526.76283108,0.00021917,2]
[329093975,1718101851650,-500.0,0.00021917,2]
[329093976,1718101851660,-500.0,0.00021917,2]
[329093977,1718101851671,-503.1844252,0.00021917,2]
[329093978,1718101851681,-500.0,0.00021917,2]
[329093979,1718101851691,-500.0,0.00021917,2]
[329093980,1718101851701,-500.5935115,0.00021917,2]
[329093981,1718101851717,-500.0,0.00021917,2]
[329093982,1718101851728,-501.01504675,0.00021917,2]
[329093983,1718101851739,-635.57,0.00021917,2]
[329093984,1718101851750,-151.0,0.00021917,2]
[329093985,1718101851761,-151.0,0.00021917,2]
[329093986,1718101851771,-502.17842959,0.00021917,2]
[329093987,1718101851784,-502.46162899,0.00021917,2]
[329093988,1718101851795,-500.0,0.00021917,2]
[329093989,1718101851804,-503.05819437,0.00021917,2]
[329093990,1718101851815,-500.0,0.00021917,2]
[329093991,1718101851825,-500.0,0.00021917,2]
[329093992,1718101851836,-500.0,0.00021917,2]
[329093993,1718101851847,-500.0,0.00021917,2]
[329093994,1718101851857,-500.0,0.00021917,2]
[329093995,1718101851867,-500.0,0.00021917,2]
[329093996,1718101851878,-500.0,0.00021917,2]
[329093997,1718101851887,-500.0,0.00021917,2]
[329093998,1718101851898,-500.0,0.00021917,2]
[329093999,1718101851908,-500.0,0.00021917,2]
[329094000,1718101851918,-500.0,0.00021917,2]
[329094001,1718101851928,-500.0,0.00021917,2]
[329094002,1718101851938,-500.0,0.00021917,2]
[329094003,1718101851949,-2502.36,0.00021917,2]
[329094004,1718101851959,-500.0,0.00021917,2]
[329094005,1718101851969,-500.0,0.00021917,2]
[329094006,1718101851979,-500.0,0.00021917,2]
[329094007,1718101851989,-500.0,0.00021917,2]
[329094008,1718101851998,-166.666666,0.00021918,2]
[329094009,1718101852008,-1160.24401508,0.00022023,2]
[329094010,1718101852018,-573.4,0.00022156,3]
[329094011,1718101852030,-155.0,0.0002219,4]
[329094012,1718101852040,-500.0,0.00022191,2]
[329094013,1718101852050,-304.5605078,0.00022191,2]
[329094014,1718101852061,-500.0,0.00022191,4]
[329094015,1718101852070,-500.0,0.00022191,2]
[329094016,1718101852080,-507.36826642,0.00022191,2]
[329094017,1718101852090,-500.0,0.00022191,2]
[329094018,1718101852101,-507.63431377,0.00022191,2]
[329094019,1718101852111,-500.0,0.00022191,2]
[329094020,1718101852121,-151.0,0.00022191,2]
[329094021,1718101852133,-500.0,0.00022191,2]
[329094022,1718101852143,-500.0,0.00022191,2]
[329094023,1718101852154,-500.0,0.00022191,2]
[329094024,1718101852165,-500.0,0.00022191,2]
[329094025,1718101852176,-509.61964294,0.00022191,2]
[329094026,1718101852187,-157.737243,0.00022191,2]
[329094027,1718101852197,-500.0,0.00022191,2]
[329094028,1718101852207,-500.0,0.00022191,2]
[329094029,1718101852218,-333.43,0.00022191,2]
[329094030,1718101852228,-500.0,0.00022191,2]
[329094031,1718101852237,-391.3222677,0.00022191,2]
[329094032,1718101852247,-508.02790547,0.00022191,2]
[329094033,1718101852257,-500.0,0.00022191,2]
[329094034,1718101852269,-500.0,0.00022191,2]
[329094035,1718101852281,-500.0,0.00022191,2]
[329094036,1718101852291,-507.69173389,0.00022191,2]
[329094037,1718101852301,-500.0,0.00022191,2]
[329094038,1718101852322,-500.0,0.00022191,2]
[329094039,1718101852333,-502.9308258,0.00022191,2]
[329094040,1718101852344,-500.0,0.00022191,2]
[329094041,1718101852355,-500.0,0.00022191,2]
[329094042,1718101852365,-500.0,0.00022191,2]
[329094043,1718101852375,-500.0,0.00022191,2]
[329094044,1718101852386,-500.0,0.00022191,2]
[329094045,1718101852397,-500.0,0.00022191,2]
[329094046,1718101852408,-500.0,0.00022191,2]
[329094047,1718101852418,-157.7551,0.00022191,2]
[329094048,1718101852429,-500.0,0.00022191,2]
[329094049,1718101852441,-500.0,0.00022191,2]
[329094050,1718101852454,-500.0,0.00022191,2]
[329094051,1718101852466,-151.0,0.00022191,2]
[329094052,1718101852477,-151.0,0.00022191,2]
[329094053,1718101852488,-500.0,0.00022191,2]
[329094054,1718101852499,-500.0,0.00022191,2]
[329094055,1718101852510,-500.0,0.00022191,2]
[329094056,1718101852520,-500.0,0.00022191,2]
[329094057,1718101852533,-500.0,0.00022191,2]
[329094058,1718101852546,-500.0,0.00022191,2]
[329094059,1718101852562,-500.0,0.00022191,2]
[329094060,1718101852573,-151.0,0.00022191,2]
[329094061,1718101852586,-151.0,0.00022191,2]
[329094062,1718101852596,-510.44688316,0.00022191,2]
[329094063,1718101852607,-193.728851,0.00022191,2]
[329094064,1718101852619,-500.0,0.00022191,2]
[329094065,1718101852632,-500.0,0.00022191,2]
[329094066,1718101852643,-500.0,0.00022191,2]
[329094067,1718101852653,-500.0,0.00022191,2]
[329094068,1718101852664,-500.0,0.00022191,2]
[329094069,1718101852674,-500.0,0.00022191,2]
[329094070,1718101852685,-500.0,0.00022191,2]
[329094071,1718101852695,-500.0,0.00022191,2]
[329094072,1718101852706,-500.0,0.00022191,2]
[329094073,1718101852727,-500.0,0.00022191,2]
[329094074,1718101852738,-151.0,0.00022191,2]
[329094075,1718101852748,-151.0,0.00022191,2]
[329094076,1718101852758,-500.0,0.00022191,2]
[329094077,1718101852768,-500.0,0.00022191,2]
[329094078,1718101852781,-500.0,0.00022191,2]
[329094079,1718101852791,-500.0,0.00022191,2]
[329094080,1718101852802,-510.09513335,0.00022191,2]
[329094081,1718101852812,-153.181627,0.00022191,2]
[329094082,1718101852824,-513.4513165,0.00022191,2]
[329094083,1718101852835,-500.0,0.00022191,2]
[329094084,1718101852846,-500.0,0.00022191,2]
[329094085,1718101852856,-500.0,0.00022191,2]
[329094086,1718101852866,-500.0,0.00022191,2]
[329094087,1718101852877,-500.0,0.00022191,2]
[329094088,1718101852887,-589.49,0.00022191,2]
[329094089,1718101852898,-468.89440039,0.00022191,2]
[329094090,1718101852909,-500.0,0.00022191,2]
[329094091,1718101852920,-500.0,0.00022191,2]
[329094092,1718101852931,-151.0,0.00022191,2]
[329094093,1718101852942,-151.0,0.00022191,2]
[329094094,1718101852953,-500.0,0.00022191,2]
[329094095,1718101852964,-500.0,0.00022191,2]
[329094096,1718101852974,-503.80865292,0.00022191,2]
[329094097,1718101852985,-500.0,0.00022191,2]
[329094098,1718101852997,-246.896942,0.00022191,2]
[329094099,1718101853007,-246.896942,0.00022191,2]
[329094100,1718101853129,-151.519853,0.00022191,2]
[329094101,1718101853141,-507.59295765,0.00022191,2]
[329094102,1718101853152,-500.0,0.00022191,2]
[329094103,1718101853163,-500.0,0.00022191,2]
[329094104,1718101853174,-500.0,0.00022191,2]
[329094105,1718101853184,-1115.76,0.00022191,2]
[329094106,1718101853195,-500.0,0.00022191,2]
[329094107,1718101853205,-151.0,0.00022191,2]
[329094108,1718101853219,-151.0,0.00022191,2]
[329094109,1718101853229,-500.0,0.00022191,2]
[329094110,1718101853239,-500.0,0.00022191,2]
[329094111,1718101853250,-300.094809,0.00022191,2]
[329094112,1718101853260,-500.0,0.00022191,2]
[329094113,1718101853270,-500.0,0.00022191,2]
[329094114,1718101853283,-501.54962265,0.00022191,2]
[329094115,1718101853293,-500.0,0.00022191,2]
[329094116,1718101853303,-500.0,0.00022191,2]
[329094117,1718101853313,-1150.23,0.00022191,2]
[329094118,1718101853323,-500.0,0.00022191,2]
[329094119,1718101853334,-500.0,0.00022191,2]
[329094120,1718101853345,-500.0,0.00022191,2]
[329094121,1718101853356,-151.0,0.00022191,2]
[329094122,1718101853366,-500.0,0.00022191,2]
[329094123,1718101853376,-151.0,0.00022191,2]
[329094124,1718101853386,-151.0,0.00022191,2]
[329094125,1718101853396,-151.0,0.00022191,2]
[329094126,1718101853407,-500.0,0.00022191,2]
[329094127,1718101853417,-500.0,0.00022191,2]
[329094128,1718101853428,-151.0,0.00022191,2]
[329094129,1718101853439,-151.0,0.00022191,2]
[329094130,1718101853449,-962.48,0.00022191,2]
[329094131,1718101853460,-500.0,0.00022191,2]
[329094132,1718101853470,-500.0,0.00022191,2]
[329094133,1718101853480,-500.0,0.00022191,2]
[329094134,1718101853492,-151.0,0.00022191,2]
[329094135,1718101853503,-228.343085,0.00022191,2]
[329094136,1718101853514,-500.0,0.00022191,2]
[329094137,1718101853525,-500.0,0.00022191,2]
[329094138,1718101853540,-814.63,0.00022191,2]
[329094139,1718101853551,-500.0,0.00022191,2]
[329094140,1718101853560,-500.0,0.00022191,2]
[329094141,1718101853570,-500.0,0.00022191,2]
[329094142,1718101853581,-3163.84,0.00022191,2]
[329094143,1718101853592,-509.95467328,0.00022191,2]
[329094144,1718101853603,-500.0,0.00022191,2]
[329094145,1718101853613,-500.0,0.00022191,2]
[329094146,1718101853625,-500.0,0.00022191,2]
[329094147,1718101853636,-276.619572,0.00022191,2]
[329094148,1718101853647,-276.619572,0.00022191,2]
[329094149,1718101853657,-276.619572,0.00022191,2]
[329094150,1718101853668,-3058.65,0.00022191,2]
[329094151,1718101853678,-276.619572,0.00022191,2]
[329094152,1718101853688,-500.0,0.00022191,2]
[329094153,1718101853699,-500.0,0.00022191,2]
[329094154,1718101853722,-500.0,0.00022191,2]
[329094155,1718101853733,-500.0,0.00022191,2]
[329094156,1718101853744,-500.0,0.00022191,2]
[329094157,1718101853755,-500.0,0.00022191,2]
[329094158,1718101853765,-500.0,0.00022191,2]
[329094159,1718101853775,-500.0,0.00022191,2]
[329094160,1718101853788,-500.0,0.00022191,2]
[329094161,1718101853799,-503.12275345,0.00022191,2]
[329094162,1718101853810,-2217.53,0.00022191,2]